bitfinex-derivatives/quotes_SOLF0:USTF0_20250426
["timestamp","ask_amount","ask_price","bid_price","bid_amount"]
[1745655725348,8.4813,151.49,151.46,5.80486292]
[1745655725649,62.0,151.48,151.45,5.80486292]
[1745655725852,68.5989,151.48,151.44,5.80486292]
[1745655726250,74.40376292,151.48,151.44,5.80486292]
[1745655726446,6.5998,151.46,151.43,29.22486292]
[1745655726643,6.5998,151.46,151.43,23.42]
[1745655727351,6.6002,151.45,151.43,23.42]
[1745655727551,12.40506292,151.45,151.41,5.80486292]
[1745655728050,6.6002,151.45,151.42,5.80486292]
[1745655728641,12.40466292,151.46,151.42,5.80486292]
[1745655728949,5.80486292,151.46,151.42,5.80486292]
[1745655729550,62.0,151.44,151.42,5.80486292]
[1745655732058,62.0,151.44,151.39,23.42]
[1745655732059,62.0,151.44,151.43,5.80486292]
[1745655734057,62.0,151.44,151.43,12.40576292]
[1745655735359,62.0,151.44,151.43,35.82576292]
[1745655735654,62.0,151.44,151.43,29.22486292]
[1745655736157,62.0,151.44,151.43,35.82576292]
[1745655737863,6.5988,151.48,151.45,6.5997]
[1745655738059,6.5988,151.48,151.46,5.80486292]
[1745655738264,6.5988,151.48,151.45,12.40456292]
[1745655740168,29.22486292,151.53,151.47,5.80486292]
[1745655740464,5.80486292,151.53,151.49,5.80486292]
[1745655740656,29.22486292,151.54,151.5,5.80486292]
[1745655740862,62.0,151.52,151.5,5.80486292]
[1745655741167,62.0,151.52,151.49,12.40286292]
[1745655741366,62.0,151.52,151.51,5.80486292]
[1745655741659,62.0,151.52,151.51,12.40226292]
[1745655741868,62.0,151.52,151.51,35.82226292]
[1745655743764,8.5607,151.57,151.53,6.5963]
[1745655743966,1.9655,151.57,151.54,5.80486292]
[1745655744269,6.5947,151.58,151.55,5.80486292]
[1745655745264,5.80486292,151.59,151.54,5.80486292]
[1745655745771,6.5955,151.56,151.54,5.80486292]
[1745655746670,6.5949,151.57,151.54,5.80486292]
[1745655746867,62.0,151.56,151.54,5.80486292]
[1745655747475,62.0,151.56,151.54,12.40076292]
[1745655747669,62.0,151.56,151.55,5.80486292]
[1745655753578,62.0,151.56,151.55,12.40056292]
[1745655763184,62.0,151.56,151.55,5.80486292]
[1745655763385,62.0,151.56,151.54,5.80486292]
[1745655763585,62.0,151.56,151.53,5.80486292]
[1745655763788,68.5955,151.56,151.53,12.40126292]
[1745655764388,62.0,151.56,151.54,6.5961]
[1745655765092,68.5953,151.56,151.54,5.80486292]
[1745655766286,68.5953,151.56,151.54,12.40096292]
[1745655766488,62.0,151.56,151.55,5.80486292]
[1745655767296,62.0,151.56,151.55,12.40056292]
[1745655770599,488.1171,151.72,151.55,29.20486292]
[1745655770800,1.9118,151.64,151.61,5.80486292]
[1745655771102,6.5923,151.63,151.61,5.80486292]
[1745655771295,1.9118,151.64,151.61,5.80486292]
[1745655771494,1.9118,151.64,151.62,5.80486292]
[1745655771694,62.0,151.63,151.62,5.80486292]
[1745655773801,62.0,151.63,151.6,5.80486292]
[1745655774097,67.80486292,151.63,151.59,29.20486292]
[1745655774801,74.39726292,151.63,151.59,29.20486292]
[1745655775003,62.0,151.63,151.6,5.80486292]
[1745655775203,62.0,151.63,151.61,5.80486292]
[1745655777106,68.5925,151.63,151.61,5.80486292]
[1745655777308,62.0,151.63,151.61,5.80486292]
[1745655780908,68.5922,151.63,151.61,5.80486292]
[1745655783015,62.0,151.63,151.61,5.80486292]
[1745655783508,62.0,151.63,151.61,12.39776292]
[1745655783713,62.0,151.63,151.61,5.80486292]
[1745655784007,62.0,151.63,151.61,12.39766292]
[1745655784211,62.0,151.63,151.62,5.80486292]
[1745655786308,68.5926,151.63,151.6,5.80486292]
[1745655786608,62.0,151.63,151.6,5.80486292]
[1745655787008,6.5929,151.62,151.6,5.80486292]
[1745655787211,62.0,151.63,151.61,5.80486292]
[1745655787507,62.0,151.63,151.62,5.80486292]
[1745655788809,62.0,151.63,151.61,5.80486292]
[1745655790004,62.0,151.63,151.6,5.80486292]
[1745655790810,68.5924,151.63,151.6,5.80486292]
[1745655792012,68.5924,151.63,151.61,5.80486292]
[1745655793419,6.5926,151.62,151.61,5.80486292]
[1745655793612,6.5926,151.62,151.6,5.80486292]
[1745655794215,68.5924,151.63,151.6,5.80486292]
[1745655797118,62.0,151.63,151.61,5.80486292]
[1745655797519,62.0,151.63,151.62,5.80486292]
[1745655798020,62.0,151.63,151.62,12.39746292]
[1745655800222,62.0,151.63,151.61,5.80486292]
[1745655800520,6.593,151.62,151.6,5.80486292]
[1745655800721,62.0,151.63,151.6,5.80486292]
[1745655801222,6.5926,151.62,151.6,5.80486292]
[1745655802323,68.5924,151.63,151.6,5.80486292]
[1745655802524,62.0,151.63,151.6,5.80486292]
[1745655802718,5.80486292,151.61,151.57,5.80486292]
[1745655803017,5.80486292,151.6,151.56,5.80486292]
[1745655803223,5.80486292,151.59,151.54,29.20486292]
[1745655803423,5.80486292,151.59,151.54,23.4]
[1745655803424,7.76346292,151.59,151.54,23.4]
[1745655803719,6.5949,151.57,151.54,29.20486292]
[1745655803923,7.76346292,151.59,151.54,29.20486292]
[1745655804313,6.5945,151.58,151.54,35.80066292]
[1745655805518,14.35756292,151.59,151.55,6.5954]
[1745655805823,1.9586,151.59,151.55,6.5954]
[1745655806123,7.76346292,151.59,151.55,6.5954]
[1745655806326,6.5944,151.58,151.54,35.80076292]
[1745655806520,7.76346292,151.59,151.54,29.20486292]
[1745655806720,7.76346292,151.59,151.56,6.595]
[1745655806926,1.9586,151.59,151.56,6.595]
[1745655807227,1.9586,151.59,151.56,5.80486292]
[1745655807721,1.9586,151.59,151.56,12.39986292]
[1745655808229,14.35746292,151.59,151.56,6.595]
[1745655808725,6.5944,151.58,151.55,5.80486292]
[1745655808926,5.80486292,151.58,151.54,29.20486292]
[1745655809328,12.39946292,151.58,151.54,35.80086292]
[1745655814531,6.5948,151.57,151.54,35.80086292]
[1745655815132,12.39936292,151.58,151.54,35.80086292]
[1745655818839,14.35746292,151.59,151.55,12.40026292]
[1745655819540,62.0,151.57,151.55,12.40026292]
[1745655820041,62.0,151.57,151.55,5.80486292]
[1745655820339,62.0,151.57,151.54,35.80076292]
[1745655820544,62.0,151.57,151.54,29.20486292]
[1745655822242,62.0,151.57,151.55,6.5956]
[1745655823640,62.0,151.57,151.55,12.40046292]
[1745655824844,68.5949,151.57,151.54,35.80076292]
[1745655825047,67.80486292,151.57,151.53,5.80486292]
[1745655825336,6.5955,151.56,151.53,6.5963]
[1745655825546,67.80486292,151.57,151.52,5.80486292]
[1745655825746,67.80486292,151.57,151.53,12.40096292]
[1745655825942,74.40006292,151.57,151.53,12.40096292]
[1745655826950,74.40006292,151.57,151.54,6.596]
[1745655827138,62.0,151.57,151.53,5.80486292]
[1745655827342,62.0,151.57,151.54,5.80486292]
[1745655827847,62.0,151.57,151.55,6.5954]
[1745655828046,62.0,151.57,151.55,5.80486292]
[1745655828243,62.0,151.57,151.56,5.80486292]
[1745655828949,62.0,151.57,151.56,12.40006292]
[1745655830846,62.0,151.57,151.55,6.5955]
[1745655831151,67.80486292,151.57,151.53,5.80486292]
[1745655831751,67.80486292,151.57,151.55,6.5954]
[1745655831949,62.0,151.57,151.55,6.5954]
[1745655832245,62.0,151.57,151.56,6.5952]
[1745655832948,62.0,151.57,151.55,6.5955]
[1745655834557,62.0,151.57,151.55,12.40036292]
[1745655835755,62.0,151.57,151.55,6.5955]
[1745655836552,62.0,151.57,151.56,6.5952]
[1745655836853,62.0,151.57,151.54,5.80486292]
[1745655837053,62.0,151.57,151.55,6.5954]
[1745655841759,62.0,151.57,151.56,5.80486292]
[1745655842157,62.0,151.57,151.56,12.40006292]
[1745655847465,23.4,151.64,151.6,6.5934]
[1745655847763,23.4,151.64,151.61,12.39786292]
[1745655847965,5.80486292,151.65,151.61,12.39786292]
[1745655848163,6.5921,151.64,151.61,12.39786292]
[1745655848364,62.0,151.62,151.61,12.39786292]
[1745655849361,62.0,151.62,151.61,5.80486292]
[1745655849757,62.0,151.62,151.59,5.80486292]
[1745655849958,6.5935,151.61,151.58,5.80486292]
[1745655850463,6.5935,151.61,151.58,12.39896292]
[1745655850965,68.5928,151.62,151.58,12.39896292]
[1745655851166,62.0,151.62,151.59,12.39876292]
[1745655851365,62.0,151.62,151.6,5.80486292]
[1745655852067,62.0,151.62,151.6,12.39806292]
[1745655852267,62.0,151.62,151.61,5.80486292]
[1745655852866,62.0,151.62,151.61,12.39796292]
[1745655857176,62.0,151.62,151.6,5.80486292]
[1745655857480,62.0,151.62,151.59,5.80486292]
[1745655857880,5.80486292,151.61,151.57,12.39926292]
[1745655858077,5.80486292,151.6,151.56,29.18486292]
[1745655858277,5.80486292,151.61,151.56,29.18486292]
[1745655859275,12.39796292,151.61,151.58,6.5943]
[1745655860581,6.5931,151.61,151.58,6.5943]
[1745655860881,62.0,151.62,151.6,5.80486292]
[1745655861680,62.0,151.62,151.59,5.80486292]
[1745655862082,62.0,151.62,151.59,12.39846292]
[1745655862679,62.0,151.62,151.6,6.5933]
[1745655868381,62.0,151.62,151.6,12.39816292]
[1745655870187,62.0,151.62,151.61,6.5931]
[1745655871888,62.0,151.62,151.61,12.39796292]
[1745655873794,62.0,151.62,151.61,6.5931]
[1745655874094,62.0,151.62,151.6,12.39816292]
[1745655875893,62.0,151.62,151.61,6.5931]
[1745655877796,62.0,151.62,151.61,12.39796292]
[1745655881394,62.0,151.62,151.61,5.80486292]
[1745655881595,62.0,151.62,151.6,29.18486292]
[1745655882198,62.0,151.62,151.6,35.77826292]
[1745655883004,68.5927,151.62,151.6,29.18486292]
[1745655885400,68.5927,151.62,151.6,5.80486292]
[1745655888006,62.0,151.62,151.58,5.80486292]
[1745655888402,62.0,151.62,151.61,5.80486292]
[1745655888803,62.0,151.62,151.61,12.39796292]
[1745655890602,62.0,151.62,151.6,12.39816292]
[1745655891911,62.0,151.62,151.61,12.39796292]
[1745655898413,5.80486292,151.67,151.63,6.5918]
[1745655898612,29.18486292,151.68,151.63,12.39666292]
[1745655899112,29.18486292,151.68,151.63,5.80486292]
[1745655899303,5.80486292,151.67,151.62,12.39746292]
[1745655899508,6.5916,151.65,151.62,12.39746292]
[1745655900509,23.38,151.68,151.64,12.39656292]
[1745655901213,29.9703,151.68,151.65,6.5913]
[1745655901410,62.0,151.67,151.65,6.5913]
[1745655901618,62.0,151.67,151.65,12.39616292]
[1745655903918,62.0,151.67,151.64,12.39646292]
[1745655904613,62.0,151.67,151.65,5.80486292]
[1745655906119,62.0,151.67,151.66,5.80486292]
[1745655907217,62.0,151.67,151.66,12.39576292]
[1745655908220,24.48,151.79,151.66,35.76486292]
[1745655908521,5.80486292,151.78,151.73,5.80486292]
[1745655909219,68.5864,151.77,151.73,5.80486292]
[1745655909519,62.0,151.77,151.75,5.80486292]
[1745655909710,62.0,151.77,151.76,5.80486292]
[1745655912328,5.80486292,151.83,151.76,5.80486292]
[1745655912518,5.80486292,151.83,151.78,5.80486292]
[1745655912824,6.5843,151.82,151.78,5.80486292]
[1745655913218,5.8865,151.84,151.79,5.80486292]
[1745655913418,5.80486292,151.83,151.79,5.80486292]
[1745655913825,5.80486292,151.82,151.79,5.80486292]
[1745655914119,6.5842,151.82,151.79,5.80486292]
[1745655914423,11.69136292,151.84,151.8,5.80486292]
[1745655915118,62.0,151.83,151.8,5.80486292]
[1745655915324,68.5836,151.83,151.8,5.80486292]
[1745655916024,74.38846292,151.83,151.8,5.80486292]
[1745655916625,62.0,151.83,151.81,5.80486292]
[1745655916826,62.0,151.83,151.8,5.80486292]
[1745655917325,68.5836,151.83,151.79,5.80486292]
[1745655918327,62.0,151.83,151.8,5.80486292]
[1745655918726,67.80486292,151.83,151.79,5.80486292]
[1745655918929,5.80486292,151.82,151.75,24.48]
[1745655919229,5.80486292,151.83,151.79,5.80486292]
[1745655919726,12.38846292,151.83,151.79,5.80486292]
[1745655920621,7.71366292,151.84,151.81,5.80486292]
[1745655920923,1.9088,151.84,151.81,5.80486292]
[1745655921328,7.71366292,151.84,151.8,5.80486292]
[1745655921523,5.80486292,151.83,151.78,5.80486292]
[1745655922126,62.0,151.82,151.8,5.80486292]
[1745655922326,62.0,151.82,151.81,5.80486292]
[1745655924026,4.0667,151.88,151.81,5.80486292]
[1745655924325,5.80486292,151.92,151.87,5.80486292]
[1745655924633,5.80486292,151.91,151.87,5.80486292]
[1745655924828,5.80486292,151.92,151.88,5.80486292]
[1745655925327,5.8927,151.93,151.83,26.68]
[1745655925538,18.27686292,151.93,151.89,5.80486292]
[1745655925829,12.472,151.93,151.89,5.80486292]
[1745655926025,18.27686292,151.93,151.88,6.5812]
[1745655926229,5.80486292,151.9,151.86,5.80486292]
[1745655926427,5.80486292,151.9,151.83,26.68]
[1745655926729,5.80486292,151.89,151.84,5.80486292]
[1745655926927,12.38546292,151.9,151.86,5.80486292]
[1745655927126,5.8927,151.93,151.83,26.68]
[1745655927324,5.80486292,151.87,151.82,5.80486292]
[1745655927526,5.80486292,151.84,151.79,12.39006292]
[1745655927730,5.80486292,151.83,151.79,12.39006292]
[1745655928030,5.80486292,151.83,151.79,5.80486292]
[1745655928531,2.0052,151.85,151.8,5.80486292]
[1745655928830,7.81006292,151.85,151.8,5.80486292]
[1745655929123,5.80486292,151.84,151.79,5.80486292]
[1745655929328,12.38796292,151.84,151.79,12.38976292]
[1745655929525,7.81006292,151.85,151.8,5.80486292]
[1745655929729,2.0052,151.85,151.78,35.70133279]
[1745655929932,36.88133279,151.92,151.82,9.02133279]
[1745655930132,2.0052,151.91,151.82,9.02133279]
[1745655930433,5.9218,151.91,151.84,9.02133279]
[1745655930832,5.9218,151.91,151.85,9.02133279]
[1745655931137,12.502,151.91,151.86,6.5819]
[1745655931637,5.9218,151.91,151.87,6.5817]
[1745655931930,5.9218,151.91,151.85,9.02133279]
[1745655931931,1.9239,151.91,151.85,9.02133279]
[1745655932133,1.9239,151.91,151.82,27.86]
[1745655932333,3.7941,151.94,151.86,9.02133279]
[1745655932536,3.7941,151.94,151.86,36.88133279]
[1745655932929,12.81543279,151.94,151.86,27.86]
[1745655933434,6.5801,151.91,151.86,34.4421]
[1745655933638,12.81543279,151.94,151.86,27.86]
[1745655934127,3.7941,151.94,151.86,27.86]
[1745655934331,12.81543279,151.94,151.86,27.86]
[1745655934534,9.02133279,151.92,151.86,27.86]
[1745655934736,1.9671,151.91,151.83,9.02133279]
[1745655935031,6.5818,151.87,151.82,35.5638]
[1745655935234,9.02133279,151.88,151.79,38.00133279]
[1745655935433,9.02133279,151.86,151.79,38.00133279]
[1745655935633,9.02133279,151.86,151.79,28.98]
[1745655936034,15.60363279,151.86,151.8,6.5844]
[1745655936337,9.02133279,151.86,151.79,28.98]
[1745655936535,3.8985,151.87,151.8,9.02133279]
[1745655936737,6.5809,151.9,151.82,9.02133279]
[1745655936938,1.9671,151.91,151.82,9.02133279]
[1745655937238,9.02133279,151.9,151.82,9.02133279]
[1745655937940,9.02133279,151.9,151.8,1.8973]
[1745655938142,9.02133279,151.86,151.79,28.98]
[1745655938739,6.5827,151.85,151.8,6.5845]
[1745655938939,9.02133279,151.86,151.8,6.5845]
[1745655939556,9.02133279,151.86,151.81,6.5844]
[1745655940443,15.60363279,151.86,151.81,6.5844]
[1745655940747,9.02133279,151.86,151.77,9.02133279]
[1745655941039,2.0183,151.85,151.81,6.584]
[1745655941342,2.0183,151.85,151.79,9.02133279]
[1745655941538,2.0183,151.85,151.8,6.5844]
[1745655941738,2.0183,151.85,151.79,9.02133279]
[1745655942035,1.965,151.86,151.79,9.02133279]
[1745655942847,8.5473,151.86,151.81,6.5841]
[1745655943039,1.965,151.86,151.79,9.02133279]
[1745655943337,1.965,151.86,151.81,6.5843]
[1745655943843,1.965,151.86,151.79,9.02133279]
[1745655944640,8.548,151.86,151.81,6.5847]
[1745655944842,28.98,151.87,151.79,9.02133279]
[1745655945044,28.98,151.87,151.81,9.02133279]
[1745655945241,6.5819,151.89,151.81,9.02133279]
[1745655945645,6.5819,151.89,151.84,6.5834]
[1745655946143,15.60323279,151.89,151.84,6.5834]
[1745655946346,9.02133279,151.89,151.81,9.02133279]
[1745655946547,9.02133279,151.87,151.8,28.98]
[1745655946844,9.02133279,151.88,151.78,9.02133279]
[1745655947044,6.5831,151.86,151.81,6.5847]
[1745655947744,6.5833,151.85,151.81,6.5847]
[1745655948154,9.02133279,151.88,151.81,6.5847]
[1745655948353,6.5832,151.86,151.81,6.5847]
[1745655948954,6.5833,151.85,151.81,6.5847]
[1745655949458,9.02133279,151.88,151.8,6.5853]
[1745655949953,9.02133279,151.86,151.79,6.5858]
[1745655950152,6.5842,151.84,151.79,6.5858]
[1745655950357,1.9099,151.85,151.79,6.5858]
[1745655950647,6.5844,151.83,151.79,6.5858]
[1745655951456,10.4606,151.84,151.8,6.5854]
[1745655952954,6.5842,151.83,151.79,6.5857]
[1745655953455,3.8768,151.84,151.78,9.02133279]
[1745655953656,1.9598,151.84,151.78,9.02133279]
[1745655954258,8.5436,151.84,151.78,9.02133279]
[1745655955159,8.5436,151.84,151.8,6.5852]
[1745655955449,1.9598,151.84,151.78,9.02133279]
[1745655955660,1.9598,151.84,151.81,6.5849]
[1745655955952,1.9598,151.84,151.78,9.02133279]
[1745655956153,1.9598,151.84,151.8,6.5853]
[1745655956855,8.5436,151.84,151.8,6.5853]
[1745655958258,6.5842,151.83,151.8,6.5853]
[1745655958556,6.5842,151.83,151.79,6.5859]
[1745655958753,1.9598,151.84,151.76,9.02133279]
[1745655959159,6.5848,151.82,151.78,6.5861]
[1745655961657,6.585,151.81,151.78,6.5861]
[1745655962056,6.5842,151.83,151.76,9.02133279]
[1745655962452,6.5842,151.83,151.75,28.98]
[1745655962453,6.5842,151.83,151.8,6.5851]
[1745655963957,6.5851,151.81,151.76,9.02133279]
[1745655964258,9.02133279,151.83,151.75,38.00133279]
[1745655964460,6.5852,151.81,151.77,6.5865]
[1745655965360,6.5852,151.81,151.78,6.5863]
[1745655965961,6.5848,151.82,151.78,6.5863]
[1745655966158,10.93123279,151.85,151.79,6.5856]
[1745655966363,10.93123279,151.85,151.75,38.00133279]
[1745655966662,9.02133279,151.83,151.75,28.98]
[1745655966861,29.5,151.82,151.75,35.5672]
[1745655967065,29.5,151.82,151.75,38.00133279]
[1745655967460,6.5854,151.81,151.75,38.00133279]
[1745655967660,29.5,151.82,151.75,38.00133279]
[1745655967959,6.5857,151.8,151.76,6.587]
[1745655968362,29.5,151.82,151.75,28.98]
[1745655968568,31.4353,151.82,151.75,28.98]
[1745655968868,31.4353,151.82,151.75,35.5674]
[1745655969167,31.4353,151.82,151.75,38.00133279]
[1745655969371,29.5,151.82,151.75,38.00133279]
[1745655969664,29.5,151.82,151.77,6.5867]
[1745655970470,29.5,151.82,151.78,6.5863]
[1745655970769,29.5,151.82,151.75,39.92703279]
[1745655970965,6.5851,151.81,151.78,6.5863]
[1745655971569,36.0846,151.82,151.78,6.5863]
[1745655971767,29.5,151.82,151.78,6.5863]
[1745655972068,6.5851,151.81,151.77,6.5866]
[1745655972670,6.5856,151.8,151.77,6.5866]
[1745655973164,6.5859,151.79,151.76,6.587]
[1745655973466,6.5859,151.79,151.75,39.92703279]
[1745655973668,29.5,151.82,151.75,39.92703279]
[1745655973966,6.5855,151.8,151.77,6.5865]
[1745655974467,6.5851,151.81,151.77,6.5865]
[1745655974859,29.5,151.82,151.75,39.92703279]
[1745655975069,36.0847,151.82,151.75,39.92703279]
[1745655975270,36.0847,151.82,151.78,6.586]
[1745655975472,29.5,151.82,151.77,9.02133279]
[1745655975670,29.5,151.82,151.8,5.77413108]
[1745655976064,5.77413108,151.84,151.8,5.77413108]
[1745655976273,6.5843,151.83,151.79,12.35963108]
[1745655977571,12.35843108,151.83,151.79,12.35963108]
[1745655977772,6.5843,151.83,151.79,6.5855]
[1745655978072,6.5846,151.82,151.79,6.5855]
[1745655978271,6.5846,151.82,151.78,6.5862]
[1745655978475,9.02295191,151.84,151.76,1.984]
[1745655978663,9.02295191,151.84,151.75,39.92865191]
[1745655978869,9.02295191,151.84,151.76,6.5869]
[1745655979166,9.02295191,151.84,151.75,39.92865191]
[1745655979472,9.02295191,151.84,151.77,6.5866]
[1745655980166,9.02295191,151.84,151.75,30.9057]
[1745655980578,6.5854,151.81,151.77,6.5865]
[1745655980873,9.02295191,151.84,151.75,30.9057]
[1745655981074,6.5849,151.82,151.75,30.9057]
[1745655981672,6.585,151.81,151.75,30.9057]
[1745655981975,9.02295191,151.84,151.75,30.9057]
[1745655982169,9.02295191,151.8,151.74,106.11977]
[1745655982775,6.5864,151.78,151.74,112.70757]
[1745655983376,6.5861,151.79,151.75,6.5876]
[1745655983672,9.02295191,151.8,151.74,106.11977]
[1745655984175,6.5863,151.78,151.74,106.11977]
[1745655984676,9.02295191,151.8,151.74,106.11977]
[1745655984973,9.02295191,151.8,151.74,112.70777]
[1745655985482,6.5866,151.78,151.74,112.70777]
[1745655986376,9.02295191,151.8,151.74,106.11977]
[1745655986578,12.89525191,151.8,151.74,106.11977]
[1745655986877,6.587,151.77,151.74,106.11977]
[1745655987779,6.5873,151.76,151.74,106.11977]
[1745655987976,9.02295191,151.78,151.74,106.11977]
[1745655988176,29.5,151.77,151.74,106.11977]
[1745655989274,6.5876,151.75,151.74,106.11977]
[1745655993377,6.5889,151.73,151.67,29.5]
[1745655993577,9.02295191,151.76,151.67,29.5]
[1745655994082,6.5887,151.73,151.67,29.5]
[1745655994278,9.02295191,151.76,151.68,9.02295191]
[1745655994473,29.5,151.77,151.73,6.5883]
[1745655994672,29.5,151.77,151.72,9.02295191]
[1745655994877,12.89525191,151.8,151.72,9.02295191]
[1745655995077,12.89525191,151.8,151.74,6.5878]
[1745655995283,6.5866,151.78,151.74,6.5878]
[1745655995480,12.89525191,151.8,151.72,10.90435191]
[1745655995681,9.02295191,151.78,151.68,9.02295191]
[1745655995886,9.02295191,151.76,151.68,37.72295191]
[1745655996089,9.02295191,151.76,151.7,6.5898]
[1745655996383,6.5889,151.73,151.68,28.7]
[1745655997286,6.5889,151.73,151.69,6.5902]
[1745655997681,28.7,151.77,151.68,28.7]
[1745655997986,37.72295191,151.77,151.68,37.72295191]
[1745655998485,6.5889,151.72,151.69,6.5901]
[1745655998685,9.02295191,151.75,151.69,6.5901]
[1745655999487,6.5887,151.73,151.69,6.5901]
[1745655999685,6.5887,151.73,151.7,6.5898]
[1745655999886,9.02295191,151.75,151.7,6.5898]
[1745656000087,6.5882,151.74,151.7,6.5898]
[1745656000387,6.5882,151.74,151.68,28.7]
[1745656001186,6.5882,151.74,151.7,6.5895]
[1745656001579,6.5885,151.73,151.69,6.5901]
[1745656001887,9.02295191,151.75,151.68,28.7]
[1745656002388,6.5883,151.74,151.7,6.5898]
[1745656003790,6.5879,151.75,151.68,37.72295191]
[1745656004089,37.72295191,151.77,151.68,37.72295191]
[1745656004789,6.5881,151.74,151.7,6.5895]
[1745656005693,5.78215239,151.73,151.7,6.5895]
[1745656007389,12.37075239,151.73,151.7,6.5895]
[1745656007791,5.78215239,151.73,151.7,6.5895]
[1745656007988,12.37045239,151.74,151.7,6.5895]
[1745656008892,12.37045239,151.74,151.7,12.37165239]
[1745656009087,12.37045239,151.74,151.71,6.5893]
[1745656009390,1.8896,151.79,151.71,5.78215239]
[1745656009592,517.380163,151.94,151.78,5.78215239]
[1745656009892,12.36465239,151.87,151.75,32.72]
[1745656010089,12.36465239,151.87,151.82,5.78215239]
[1745656010291,5.78215239,151.87,151.82,5.78215239]
[1745656010690,506.86,151.89,151.84,5.78215239]
[1745656010905,38.50215239,151.89,151.84,5.78215239]
[1745656011396,38.50215239,151.89,151.85,5.78215239]
[1745656011693,32.72,151.89,151.83,9.01571593]
[1745656012097,92.628098,151.93,151.85,9.01571593]
[1745656012489,6.5803,151.92,151.86,6.5826]
[1745656012885,6.5803,151.92,151.85,9.01571593]
[1745656013298,32.7,151.94,151.87,6.5824]
[1745656013594,9.01571593,151.93,151.85,9.01571593]
[1745656013793,32.7,151.94,151.85,9.01571593]
[1745656013994,6.5811,151.91,151.85,9.01571593]
[1745656014189,9.01571593,151.91,151.83,13.03451593]
[1745656014893,6.5812,151.9,151.83,19.61861593]
[1745656015293,9.01571593,151.89,151.81,32.7]
[1745656015792,6.5828,151.87,151.81,32.7]
[1745656015993,41.71571593,151.89,151.81,32.7]
[1745656016195,39.2817,151.89,151.83,6.584]
[1745656016598,32.7,151.89,151.82,9.01571593]
[1745656016796,9.01571593,151.87,151.78,9.01571593]
[1745656016999,9.01571593,151.85,151.77,5.9649]
[1745656017299,6.5845,151.83,151.77,12.5516]
[1745656017596,9.01571593,151.83,151.73,9.01571593]
[1745656017997,6.5854,151.81,151.73,9.01571593]
[1745656018499,6.5854,151.81,151.76,6.5868]
[1745656018897,6.5856,151.8,151.73,9.01571593]
[1745656019098,9.01571593,151.83,151.76,6.5871]
[1745656019300,6.5851,151.81,151.76,6.5871]
[1745656019801,6.5851,151.81,151.77,6.5867]
[1745656020403,6.5851,151.81,151.75,6.5872]
[1745656020700,9.01571593,151.83,151.73,9.01571593]
[1745656020898,9.01571593,151.81,151.73,9.01571593]
[1745656021102,6.5856,151.8,151.73,9.01571593]
[1745656021400,9.01571593,151.81,151.73,9.01571593]
[1745656021603,6.5851,151.81,151.73,9.01571593]
[1745656021998,9.01571593,151.83,151.73,9.01571593]
[1745656022200,6.5851,151.81,151.77,6.5867]
[1745656022404,9.01571593,151.83,151.75,9.01571593]
[1745656022603,32.7,151.84,151.75,9.01571593]
[1745656022803,32.7,151.84,151.77,9.01571593]
[1745656023398,6.5843,151.83,151.77,9.01571593]
[1745656023599,32.7,151.84,151.77,9.01571593]
[1745656023807,474.2,151.87,151.79,9.01571593]
[1745656024104,474.2,151.87,151.81,6.5847]
[1745656024400,6.583,151.86,151.81,6.5847]
[1745656024600,474.2,151.87,151.81,6.5847]
[1745656024808,474.2,151.87,151.82,6.5845]
[1745656025004,32.7,151.88,151.81,9.01571593]
[1745656025505,6.5816,151.89,151.78,6.0739]
[1745656025506,32.7,151.93,151.85,9.01571593]
[1745656026099,32.7,151.93,151.88,6.5818]
[1745656026706,32.7,151.93,151.87,6.5824]
[1745656027003,6.5813,151.9,151.85,9.01571593]
[1745656027204,9.01571593,151.89,151.82,32.7]
[1745656027510,6.5826,151.87,151.8,9.01571593]
[1745656027704,9.01571593,151.89,151.8,15.60111593]